[Event "Titled Tuesday Blitz July 4 Late 2023"]
[White "Kazmin_Semyon"]
[Black "Barwinska, Ewa"]
[BlackFideId "21833761"]
[WhiteElo "2449"]
[BlackElo "2280"]
[Result "1-0"]
[Round "4"]
[TimeControl "180+2"]
[Date "2023.07.04"]
[WhiteClock "0:01:05"]
[BlackClock "0:00:04"]
[Board "136"]

1. e4 {[%clk 0:03:00]}  e5 {[%clk 0:02:52]} 2. Nf3 {[%clk 0:02:59]}  Nc6 {[%clk 0:02:52]} 3. c3 {[%clk 0:02:57]}  d5 {[%clk 0:02:44]} 4. exd5 {[%clk 0:02:30]}  Qxd5 {[%clk 0:02:44]} 5. Na3 {[%clk 0:02:25]}  Bxa3 {[%clk 0:02:39]} 6. bxa3 {[%clk 0:02:24]}  e4 {[%clk 0:02:19]} 7. Ng1 {[%clk 0:02:14]}  Nf6 {[%clk 0:02:13]} 8. Qb3 {[%clk 0:02:13]}  O-O {[%clk 0:02:03]} 9. Bc4 {[%clk 0:02:11]}  Qg5 {[%clk 0:01:59]} 10. g3 {[%clk 0:02:10]}  Ne5 {[%clk 0:01:46]} 11. d4 {[%clk 0:02:07]}  Qf5 {[%clk 0:01:22]} 12. dxe5 {[%clk 0:02:05]}  Qxe5 {[%clk 0:01:23]} 13. Bf4 {[%clk 0:02:04]}  Qc5 {[%clk 0:01:20]} 14. Be3 {[%clk 0:02:00]}  Qe7 {[%clk 0:01:16]} 15. Qb4 {[%clk 0:01:56]}  Qe5 {[%clk 0:01:12]} 16. Qc5 {[%clk 0:01:51]}  Qxc3+ {[%clk 0:01:10]} 17. Kf1 {[%clk 0:01:46]}  Qxa1+ {[%clk 0:01:08]} 18. Kg2 {[%clk 0:01:47]}  Bg4 {[%clk 0:00:49]} 19. h3 {[%clk 0:01:44]}  Bf3+ {[%clk 0:00:47]} 20. Nxf3 {[%clk 0:01:44]}  exf3+ {[%clk 0:00:48]} 21. Kh2 {[%clk 0:01:45]}  Qb2 {[%clk 0:00:35]} 22. Bd4 {[%clk 0:01:40]}  Qb6 {[%clk 0:00:36]} 23. Qe5 {[%clk 0:01:34]}  Qd6 {[%clk 0:00:22]} 24. Qe3 {[%clk 0:01:32]}  Nd5 {[%clk 0:00:18]} 25. Qxf3 {[%clk 0:01:31]}  Nb6 {[%clk 0:00:14]} 26. Qg4 {[%clk 0:01:26]}  Qg6 {[%clk 0:00:13]} 27. Qxg6 {[%clk 0:01:21]}  hxg6 {[%clk 0:00:14]} 28. Bb3 {[%clk 0:01:22]}  Rfd8 {[%clk 0:00:13]} 29. Be3 {[%clk 0:01:17]}  Nd5 {[%clk 0:00:12]} 30. Bg5 {[%clk 0:01:17]}  f6 {[%clk 0:00:11]} 31. Bc1 {[%clk 0:01:16]}  Kh7 {[%clk 0:00:12]} 32. h4 {[%clk 0:01:16]}  Nc3 {[%clk 0:00:12]} 33. Bc2 {[%clk 0:01:10]}  f5 {[%clk 0:00:08]} 34. Kg2 {[%clk 0:01:09]}  Kg8 {[%clk 0:00:07]} 35. h5 {[%clk 0:01:09]}  gxh5 {[%clk 0:00:06]} 36. Rxh5 {[%clk 0:01:09]}  g6 {[%clk 0:00:05]} 37. Rh4 {[%clk 0:01:08]}  Nd5 {[%clk 0:00:04]} 38. Bb2 {[%clk 0:01:08]}  Rd7 {[%clk 0:00:03]} 39. Rh8+ {[%clk 0:01:04]}  Kf7 {[%clk 0:00:03]} 40. Rxa8 {[%clk 0:01:05]}  Nb6 {[%clk 0:00:02]} 41. Rh8 {[%clk 0:01:02]}  Rd2 {[%clk 0:00:03]} 42. Bb3+ {[%clk 0:01:03]}  Ke7 {[%clk 0:00:02]} 43. Bc3 {[%clk 0:01:03]}  Re2 {[%clk 0:00:02]} 44. Bb4+ {[%clk 0:01:03]}  Kd7 {[%clk 0:00:02]} 45. Rh7+ {[%clk 0:01:03]}  Kc6 {[%clk 0:00:02]} 46. Rg7 {[%clk 0:01:03]}  g5 {[%clk 0:00:02]} 47. Rg6+ {[%clk 0:01:03]}  Kb5 {[%clk 0:00:02]} 48. Rxg5 {[%clk 0:01:04]}  a5 {[%clk 0:00:02]} 49. Rxf5+ {[%clk 0:01:04]}  c5 {[%clk 0:00:03]} 50. Rxc5+ {[%clk 0:01:04]}  Ka6 {[%clk 0:00:04]} 51. Rxa5# {[%clk 0:01:05]} 1-0


[Site "https://www.chess.com"]

[Event "Titled Tuesday Blitz July 4 Late 2023"]
[White "rionelG"]
[Black "Uzcategui Rodriguez, Alejandro"]
[BlackFideId "3903400"]
[WhiteElo "2271"]
[BlackElo "2447"]
[Result "0-1"]
[Round "4"]
[TimeControl "180+2"]
[Date "2023.07.04"]
[WhiteClock "0:00:00"]
[BlackClock "0:00:29"]
[Board "138"]

1. e4 {[%clk 0:03:00]}  e6 {[%clk 0:02:58]} 2. d3 {[%clk 0:02:59]}  d5 {[%clk 0:02:58]} 3. Nd2 {[%clk 0:02:59]}  Nc6 {[%clk 0:02:58]} 4. g3 {[%clk 0:02:59]}  Nf6 {[%clk 0:02:57]} 5. Bg2 {[%clk 0:02:59]}  dxe4 {[%clk 0:02:56]} 6. dxe4 {[%clk 0:02:59]}  e5 {[%clk 0:02:57]} 7. Ngf3 {[%clk 0:02:59]}  Bc5 {[%clk 0:02:56]} 8. O-O {[%clk 0:03:00]}  O-O {[%clk 0:02:56]} 9. c3 {[%clk 0:03:00]}  a5 {[%clk 0:02:56]} 10. h3 {[%clk 0:02:56]}  b6 {[%clk 0:02:53]} 11. Re1 {[%clk 0:02:56]}  Qe7 {[%clk 0:02:47]} 12. Nh4 {[%clk 0:02:53]}  Rd8 {[%clk 0:02:46]} 13. Qf3 {[%clk 0:02:47]}  g6 {[%clk 0:02:31]} 14. Nb3 {[%clk 0:02:43]}  Nh5 {[%clk 0:02:28]} 15. Nxc5 {[%clk 0:02:25]}  bxc5 {[%clk 0:02:27]} 16. Be3 {[%clk 0:02:13]}  Nf4 {[%clk 0:02:16]} 17. Bxf4 {[%clk 0:01:35]}  exf4 {[%clk 0:02:12]} 18. e5 {[%clk 0:01:36]}  Bb7 {[%clk 0:02:08]} 19. Qxf4 {[%clk 0:01:36]}  g5 {[%clk 0:01:59]} 20. Qg4 {[%clk 0:01:35]}  h5 {[%clk 0:01:59]} 21. Nf5 {[%clk 0:01:29]}  hxg4 {[%clk 0:01:58]} 22. Nxe7+ {[%clk 0:01:28]}  Nxe7 {[%clk 0:01:58]} 23. Bxb7 {[%clk 0:01:28]}  Rab8 {[%clk 0:01:58]} 24. Bg2 {[%clk 0:01:25]}  gxh3 {[%clk 0:01:57]} 25. Bxh3 {[%clk 0:01:24]}  Rxb2 {[%clk 0:01:58]} 26. Rad1 {[%clk 0:01:19]}  Rdd2 {[%clk 0:01:54]} 27. Rxd2 {[%clk 0:01:13]}  Rxd2 {[%clk 0:01:55]} 28. e6 {[%clk 0:01:07]}  f5 {[%clk 0:01:52]} 29. Re5 {[%clk 0:01:06]}  Rd5 {[%clk 0:01:28]} 30. Re2 {[%clk 0:00:40]}  Kg7 {[%clk 0:01:24]} 31. Bg2 {[%clk 0:00:34]}  Rd3 {[%clk 0:01:21]} 32. c4 {[%clk 0:00:26]}  Kf6 {[%clk 0:01:19]} 33. Rb2 {[%clk 0:00:23]}  Ra3 {[%clk 0:01:06]} 34. Rb5 {[%clk 0:00:19]}  Kxe6 {[%clk 0:01:02]} 35. Rxc5 {[%clk 0:00:19]}  Kd6 {[%clk 0:01:02]} 36. Rb5 {[%clk 0:00:16]}  Rxa2 {[%clk 0:00:57]} 37. c5+ {[%clk 0:00:15]}  Kd7 {[%clk 0:00:55]} 38. c6+ {[%clk 0:00:10]}  Kd6 {[%clk 0:00:54]} 39. f4 {[%clk 0:00:05]}  g4 {[%clk 0:00:45]} 40. Bf1 {[%clk 0:00:05]}  Kxc6 {[%clk 0:00:40]} 41. Re5 {[%clk 0:00:04]}  Kd6 {[%clk 0:00:40]} 42. Bc4 {[%clk 0:00:00]}  Ra4 {[%clk 0:00:29]} 0-1


[Site "https://www.chess.com"]

[Event "Titled Tuesday Blitz July 4 Late 2023"]
[White "Mendez Machado, Andre"]
[Black "Ladan, Nicholas"]
[WhiteFideId "6603793"]
[BlackFideId "30918855"]
[WhiteElo "2252"]
[BlackElo "2445"]
[Result "0-1"]
[Round "4"]
[TimeControl "180+2"]
[Date "2023.07.04"]
[WhiteClock "0:00:00"]
[BlackClock "0:00:04"]
[Board "139"]

1. e4 {[%clk 0:02:57]}  b6 {[%clk 0:02:58]} 2. d4 {[%clk 0:02:57]}  Bb7 {[%clk 0:02:59]} 3. Bd3 {[%clk 0:02:57]}  f5 {[%clk 0:02:59]} 4. exf5 {[%clk 0:02:52]}  Bxg2 {[%clk 0:02:56]} 5. Qh5+ {[%clk 0:02:47]}  g6 {[%clk 0:02:57]} 6. fxg6 {[%clk 0:02:41]}  Bg7 {[%clk 0:02:57]} 7. gxh7+ {[%clk 0:02:19]}  Kf8 {[%clk 0:02:56]} 8. Nh3 {[%clk 0:02:08]}  Nf6 {[%clk 0:02:55]} 9. Qh4 {[%clk 0:01:53]}  Bxh1 {[%clk 0:02:50]} 10. Nf4 {[%clk 0:01:52]}  Nxh7 {[%clk 0:02:21]} 11. Bxh7 {[%clk 0:00:49]}  Be4 {[%clk 0:02:18]} 12. Ne6+ {[%clk 0:00:29]}  dxe6 {[%clk 0:02:15]} 13. Qxe4 {[%clk 0:00:24]}  Qd5 {[%clk 0:02:01]} 14. Qf4+ {[%clk 0:00:19]}  Bf6 {[%clk 0:01:15]} 15. Be4 {[%clk 0:00:19]}  Qa5+ {[%clk 0:00:56]} 16. Bd2 {[%clk 0:00:19]}  Qa6 {[%clk 0:00:55]} 17. Bxa8 {[%clk 0:00:18]}  Rg8 {[%clk 0:00:55]} 18. Qh6+ {[%clk 0:00:17]}  Ke8 {[%clk 0:00:49]} 19. Qh5+ {[%clk 0:00:15]}  Kd7 {[%clk 0:00:41]} 20. Be3 {[%clk 0:00:08]}  Rg1+ {[%clk 0:00:38]} 21. Kd2 {[%clk 0:00:09]}  Qf1 {[%clk 0:00:29]} 22. Bf3 {[%clk 0:00:08]}  Na6 {[%clk 0:00:19]} 23. Be2 {[%clk 0:00:07]}  Qc1+ {[%clk 0:00:15]} 24. Kc3 {[%clk 0:00:07]}  Bxd4+ {[%clk 0:00:12]} 25. Kxd4 {[%clk 0:00:06]}  Qxb2+ {[%clk 0:00:12]} 26. Ke4 {[%clk 0:00:06]}  Qxa1 {[%clk 0:00:10]} 27. Bxa6 {[%clk 0:00:06]}  Qxb1 {[%clk 0:00:09]} 28. Bb5+ {[%clk 0:00:03]}  c6 {[%clk 0:00:06]} 29. Bd3 {[%clk 0:00:04]}  Qb4+ {[%clk 0:00:04]} 30. Kf3 {[%clk 0:00:04]}  Qe1 {[%clk 0:00:03]} 31. Qh4 {[%clk 0:00:02]}  Qd1+ {[%clk 0:00:03]} 32. Be2 {[%clk 0:00:02]}  Qd5+ {[%clk 0:00:03]} 33. Qe4 {[%clk 0:00:00]}  Qh5+ {[%clk 0:00:04]} 0-1


[Site "https://www.chess.com"]

[Event "Titled Tuesday Blitz July 4 Late 2023"]
[White "Gardezi, Arsal"]
[Black "Herman, Daniel"]
[WhiteFideId "30949521"]
[BlackFideId "30935008"]
[WhiteElo "2208"]
[BlackElo "2425"]
[Result "1-0"]
[Round "4"]
[TimeControl "180+2"]
[Date "2023.07.04"]
[WhiteClock "0:00:24"]
[BlackClock "0:00:01"]
[Board "143"]

1. e4 {[%clk 0:03:00]}  d6 {[%clk 0:02:57]} 2. d4 {[%clk 0:02:42]}  Nf6 {[%clk 0:02:58]} 3. Nc3 {[%clk 0:02:41]}  e5 {[%clk 0:02:58]} 4. Nf3 {[%clk 0:02:28]}  Nbd7 {[%clk 0:02:57]} 5. h3 {[%clk 0:02:25]}  Be7 {[%clk 0:02:57]} 6. Be3 {[%clk 0:02:25]}  O-O {[%clk 0:02:54]} 7. Bc4 {[%clk 0:02:26]}  c6 {[%clk 0:02:53]} 8. O-O {[%clk 0:02:26]}  Nxe4 {[%clk 0:02:51]} 9. Nxe4 {[%clk 0:02:23]}  d5 {[%clk 0:02:51]} 10. Ned2 {[%clk 0:02:22]}  dxc4 {[%clk 0:02:51]} 11. dxe5 {[%clk 0:02:20]}  Nb6 {[%clk 0:02:36]} 12. Bxb6 {[%clk 0:02:18]}  Qxb6 {[%clk 0:02:15]} 13. Nxc4 {[%clk 0:02:18]}  Qa6 {[%clk 0:02:15]} 14. Nd6 {[%clk 0:02:16]}  Be6 {[%clk 0:02:10]} 15. Nd4 {[%clk 0:02:13]}  Rad8 {[%clk 0:02:01]} 16. Nxe6 {[%clk 0:02:13]}  fxe6 {[%clk 0:02:02]} 17. Qg4 {[%clk 0:02:13]}  Bxd6 {[%clk 0:01:45]} 18. Qxe6+ {[%clk 0:02:13]}  Kh8 {[%clk 0:01:45]} 19. exd6 {[%clk 0:02:13]}  Rfe8 {[%clk 0:01:36]} 20. Qf7 {[%clk 0:01:58]}  Rf8 {[%clk 0:01:34]} 21. Qe7 {[%clk 0:01:54]}  Rfe8 {[%clk 0:01:34]} 22. Qf7 {[%clk 0:01:54]}  Rf8 {[%clk 0:01:34]} 23. Qc7 {[%clk 0:01:55]}  Qb6 {[%clk 0:01:22]} 24. Qxb6 {[%clk 0:01:52]}  axb6 {[%clk 0:01:23]} 25. Rad1 {[%clk 0:01:52]}  Rf6 {[%clk 0:01:22]} 26. Rfe1 {[%clk 0:01:52]}  Kg8 {[%clk 0:01:18]} 27. Re7 {[%clk 0:01:41]}  Rfxd6 {[%clk 0:01:06]} 28. Rxd6 {[%clk 0:01:40]}  Rxd6 {[%clk 0:01:07]} 29. Rxb7 {[%clk 0:01:40]}  b5 {[%clk 0:01:06]} 30. Rc7 {[%clk 0:01:26]}  h5 {[%clk 0:01:01]} 31. Kf1 {[%clk 0:01:26]}  Kh7 {[%clk 0:00:59]} 32. Re7 {[%clk 0:01:25]}  Kg6 {[%clk 0:00:57]} 33. Ke2 {[%clk 0:01:24]}  Kf6 {[%clk 0:00:56]} 34. Re3 {[%clk 0:01:22]}  g5 {[%clk 0:00:55]} 35. Re4 {[%clk 0:01:19]}  h4 {[%clk 0:00:50]} 36. a4 {[%clk 0:01:18]}  bxa4 {[%clk 0:00:49]} 37. Rxa4 {[%clk 0:01:18]}  Rd5 {[%clk 0:00:44]} 38. Rc4 {[%clk 0:01:14]}  c5 {[%clk 0:00:40]} 39. b4 {[%clk 0:01:10]}  cxb4 {[%clk 0:00:38]} 40. Rxb4 {[%clk 0:01:11]}  Ra5 {[%clk 0:00:37]} 41. Rc4 {[%clk 0:01:06]}  Kf5 {[%clk 0:00:34]} 42. Rc8 {[%clk 0:01:05]}  Ra1 {[%clk 0:00:34]} 43. Rc5+ {[%clk 0:01:04]}  Kf4 {[%clk 0:00:30]} 44. Rc4+ {[%clk 0:01:02]}  Kf5 {[%clk 0:00:30]} 45. Kf3 {[%clk 0:01:02]}  Re1 {[%clk 0:00:25]} 46. Rc5+ {[%clk 0:01:01]}  Kg6 {[%clk 0:00:25]} 47. c4 {[%clk 0:00:57]}  Rd1 {[%clk 0:00:24]} 48. g3 {[%clk 0:00:53]}  hxg3 {[%clk 0:00:19]} 49. fxg3 {[%clk 0:00:49]}  Rd3+ {[%clk 0:00:20]} 50. Kg2 {[%clk 0:00:46]}  Rd2+ {[%clk 0:00:19]} 51. Kg1 {[%clk 0:00:45]}  Rd3 {[%clk 0:00:19]} 52. Kf2 {[%clk 0:00:45]}  Rd2+ {[%clk 0:00:20]} 53. Ke3 {[%clk 0:00:45]}  Rh2 {[%clk 0:00:20]} 54. Rc6+ {[%clk 0:00:41]}  Kf5 {[%clk 0:00:19]} 55. Rh6 {[%clk 0:00:41]}  Rg2 {[%clk 0:00:16]} 56. g4+ {[%clk 0:00:40]}  Ke5 {[%clk 0:00:17]} 57. Rh5 {[%clk 0:00:39]}  Kf6 {[%clk 0:00:17]} 58. Rh6+ {[%clk 0:00:39]}  Kg7 {[%clk 0:00:15]} 59. Rh5 {[%clk 0:00:37]}  Kg6 {[%clk 0:00:15]} 60. Kd4 {[%clk 0:00:33]}  Rd2+ {[%clk 0:00:11]} 61. Kc5 {[%clk 0:00:33]}  Kf6 {[%clk 0:00:11]} 62. Rh6+ {[%clk 0:00:31]}  Ke5 {[%clk 0:00:10]} 63. Rg6 {[%clk 0:00:32]}  Kf4 {[%clk 0:00:10]} 64. Rf6+ {[%clk 0:00:30]}  Kg3 {[%clk 0:00:10]} 65. Rh6 {[%clk 0:00:30]}  Rh2 {[%clk 0:00:08]} 66. Kb6 {[%clk 0:00:29]}  Rxh3 {[%clk 0:00:03]} 67. Rxh3+ {[%clk 0:00:28]}  Kxh3 {[%clk 0:00:04]} 68. c5 {[%clk 0:00:29]}  Kxg4 {[%clk 0:00:05]} 69. c6 {[%clk 0:00:30]}  Kf3 {[%clk 0:00:05]} 70. c7 {[%clk 0:00:30]}  g4 {[%clk 0:00:06]} 71. c8=Q {[%clk 0:00:31]}  g3 {[%clk 0:00:05]} 72. Qc6+ {[%clk 0:00:31]}  Kf2 {[%clk 0:00:05]} 73. Qc5+ {[%clk 0:00:32]}  Kf1 {[%clk 0:00:05]} 74. Qc4+ {[%clk 0:00:32]}  Kf2 {[%clk 0:00:05]} 75. Qd4+ {[%clk 0:00:32]}  Kf1 {[%clk 0:00:04]} 76. Qd3+ {[%clk 0:00:32]}  Kf2 {[%clk 0:00:04]} 77. Qf5+ {[%clk 0:00:31]}  Kg1 {[%clk 0:00:03]} 78. Kc5 {[%clk 0:00:29]}  g2 {[%clk 0:00:03]} 79. Kd4 {[%clk 0:00:29]}  Kh2 {[%clk 0:00:02]} 80. Qe5+ {[%clk 0:00:28]}  Kh1 {[%clk 0:00:02]} 81. Qh5+ {[%clk 0:00:27]}  Kg1 {[%clk 0:00:02]} 82. Ke3 {[%clk 0:00:26]}  Kf1 {[%clk 0:00:01]} 83. Qe2+ {[%clk 0:00:23]}  Kg1 {[%clk 0:00:01]} 84. Kf3 {[%clk 0:00:23]}  Kh1 {[%clk 0:00:01]} 85. Qxg2# {[%clk 0:00:24]} 1-0


[Site "https://www.chess.com"]

[Event "Titled Tuesday Blitz July 4 Late 2023"]
[White "Ai, Evan"]
[Black "rikchessmx"]
[WhiteFideId "2094770"]
[WhiteElo "2424"]
[BlackElo "2229"]
[Result "1/2-1/2"]
[Round "4"]
[TimeControl "180+2"]
[Date "2023.07.04"]
[WhiteClock "0:00:12"]
[BlackClock "0:00:11"]
[Board "144"]

1. d4 {[%clk 0:03:00]}  d5 {[%clk 0:02:43]} 2. c4 {[%clk 0:03:00]}  e6 {[%clk 0:02:44]} 3. Nf3 {[%clk 0:03:00]}  Nf6 {[%clk 0:02:44]} 4. g3 {[%clk 0:03:00]}  c6 {[%clk 0:02:44]} 5. Bg2 {[%clk 0:03:00]}  dxc4 {[%clk 0:02:45]} 6. Qc2 {[%clk 0:02:58]}  b5 {[%clk 0:02:44]} 7. O-O {[%clk 0:02:56]}  Bb7 {[%clk 0:02:43]} 8. Rd1 {[%clk 0:02:52]}  Nbd7 {[%clk 0:02:42]} 9. e4 {[%clk 0:02:48]}  Qb6 {[%clk 0:02:42]} 10. Nc3 {[%clk 0:02:41]}  c5 {[%clk 0:02:36]} 11. d5 {[%clk 0:02:40]}  exd5 {[%clk 0:02:35]} 12. exd5 {[%clk 0:02:41]}  Bd6 {[%clk 0:02:35]} 13. Re1+ {[%clk 0:02:21]}  Kf8 {[%clk 0:02:34]} 14. Ng5 {[%clk 0:02:09]}  h6 {[%clk 0:02:32]} 15. Nge4 {[%clk 0:02:09]}  Re8 {[%clk 0:02:19]} 16. Bd2 {[%clk 0:02:03]}  Be5 {[%clk 0:02:08]} 17. Nxf6 {[%clk 0:01:27]}  Nxf6 {[%clk 0:02:07]} 18. Be3 {[%clk 0:01:07]}  Bd6 {[%clk 0:02:02]} 19. Rad1 {[%clk 0:00:57]}  g6 {[%clk 0:02:01]} 20. a4 {[%clk 0:00:56]}  a6 {[%clk 0:02:00]} 21. axb5 {[%clk 0:00:38]}  axb5 {[%clk 0:01:57]} 22. Qd2 {[%clk 0:00:38]}  Ng4 {[%clk 0:01:49]} 23. Bf4 {[%clk 0:00:35]}  Kg7 {[%clk 0:01:42]} 24. Bxd6 {[%clk 0:00:33]}  Qxd6 {[%clk 0:01:38]} 25. Nxb5 {[%clk 0:00:33]}  Qf6 {[%clk 0:01:34]} 26. Qc3 {[%clk 0:00:21]}  Ne5 {[%clk 0:01:28]} 27. f4 {[%clk 0:00:20]}  Nd3 {[%clk 0:01:28]} 28. Rxe8 {[%clk 0:00:16]}  Rxe8 {[%clk 0:01:27]} 29. Qxf6+ {[%clk 0:00:12]}  Kxf6 {[%clk 0:01:27]} 30. Nd6 {[%clk 0:00:13]}  Rb8 {[%clk 0:01:23]} 31. Nxc4 {[%clk 0:00:14]}  Nb4 {[%clk 0:01:20]} 32. d6 {[%clk 0:00:12]}  Bxg2 {[%clk 0:01:20]} 33. Kxg2 {[%clk 0:00:13]}  Nc6 {[%clk 0:01:17]} 34. d7 {[%clk 0:00:13]}  Nd4 {[%clk 0:01:16]} 35. Re1 {[%clk 0:00:09]}  Rd8 {[%clk 0:01:15]} 36. Nb6 {[%clk 0:00:08]}  Ne6 {[%clk 0:01:13]} 37. Nd5+ {[%clk 0:00:08]}  Kg7 {[%clk 0:01:12]} 38. Nb6 {[%clk 0:00:09]}  Rb8 {[%clk 0:01:11]} 39. Nc8 {[%clk 0:00:09]}  Rxb2+ {[%clk 0:01:10]} 40. Kf3 {[%clk 0:00:06]}  Rd2 {[%clk 0:01:11]} 41. Nb6 {[%clk 0:00:04]}  Rd6 {[%clk 0:01:10]} 42. Rb1 {[%clk 0:00:04]}  Kf6 {[%clk 0:01:08]} 43. Ke4 {[%clk 0:00:04]}  Ke7 {[%clk 0:01:08]} 44. Nc8+ {[%clk 0:00:03]}  Kxd7 {[%clk 0:01:07]} 45. Nxd6 {[%clk 0:00:04]}  Kxd6 {[%clk 0:01:08]} 46. Rd1+ {[%clk 0:00:04]}  Nd4 {[%clk 0:01:09]} 47. Kd3 {[%clk 0:00:04]}  f5 {[%clk 0:01:09]} 48. Kc4 {[%clk 0:00:04]}  Kc6 {[%clk 0:01:10]} 49. Re1 {[%clk 0:00:05]}  Kd6 {[%clk 0:01:10]} 50. Re5 {[%clk 0:00:05]}  Nf3 {[%clk 0:01:09]} 51. Rd5+ {[%clk 0:00:05]}  Ke6 {[%clk 0:01:08]} 52. Kxc5 {[%clk 0:00:06]}  Nxh2 {[%clk 0:01:09]} 53. Rd6+ {[%clk 0:00:06]}  Kf7 {[%clk 0:01:09]} 54. Rd7+ {[%clk 0:00:06]}  Kf6 {[%clk 0:01:08]} 55. Rd6+ {[%clk 0:00:07]}  Ke7 {[%clk 0:01:09]} 56. Kd5 {[%clk 0:00:07]}  Kf7 {[%clk 0:01:08]} 57. Rd7+ {[%clk 0:00:07]}  Kf6 {[%clk 0:01:08]} 58. Rd8 {[%clk 0:00:05]}  Nf1 {[%clk 0:01:07]} 59. Rf8+ {[%clk 0:00:05]}  Kg7 {[%clk 0:01:07]} 60. Re8 {[%clk 0:00:04]}  Nxg3 {[%clk 0:01:07]} 61. Ke5 {[%clk 0:00:05]}  Nh5 {[%clk 0:01:04]} 62. Re7+ {[%clk 0:00:06]}  Kg8 {[%clk 0:01:03]} 63. Ke6 {[%clk 0:00:05]}  Nxf4+ {[%clk 0:01:01]} 64. Ke5 {[%clk 0:00:06]}  Nh5 {[%clk 0:00:56]} 65. Rc7 {[%clk 0:00:04]}  f4 {[%clk 0:00:55]} 66. Ke4 {[%clk 0:00:04]}  g5 {[%clk 0:00:54]} 67. Kf3 {[%clk 0:00:04]}  Nf6 {[%clk 0:00:53]} 68. Rb7 {[%clk 0:00:04]}  Nd5 {[%clk 0:00:53]} 69. Ke4 {[%clk 0:00:04]}  Ne3 {[%clk 0:00:50]} 70. Kf3 {[%clk 0:00:02]}  h5 {[%clk 0:00:49]} 71. Ke4 {[%clk 0:00:02]}  h4 {[%clk 0:00:48]} 72. Rb5 {[%clk 0:00:02]}  g4 {[%clk 0:00:48]} 73. Kxf4 {[%clk 0:00:02]}  Ng2+ {[%clk 0:00:42]} 74. Kxg4 {[%clk 0:00:03]}  Kf7 {[%clk 0:00:42]} 75. Kh3 {[%clk 0:00:03]}  Ne3 {[%clk 0:00:41]} 76. Kxh4 {[%clk 0:00:04]}  Ke6 {[%clk 0:00:41]} 77. Kg3 {[%clk 0:00:05]}  Nf5+ {[%clk 0:00:40]} 78. Kf4 {[%clk 0:00:05]}  Nd4 {[%clk 0:00:41]} 79. Re5+ {[%clk 0:00:05]}  Kd6 {[%clk 0:00:41]} 80. Ke4 {[%clk 0:00:06]}  Nc6 {[%clk 0:00:40]} 81. Rd5+ {[%clk 0:00:06]}  Ke6 {[%clk 0:00:40]} 82. Rh5 {[%clk 0:00:06]}  Kd6 {[%clk 0:00:38]} 83. Rh6+ {[%clk 0:00:07]}  Kc7 {[%clk 0:00:38]} 84. Kd5 {[%clk 0:00:07]}  Ne7+ {[%clk 0:00:38]} 85. Kc5 {[%clk 0:00:08]}  Nf5 {[%clk 0:00:37]} 86. Rf6 {[%clk 0:00:08]}  Ne7 {[%clk 0:00:36]} 87. Rf7 {[%clk 0:00:08]}  Kd7 {[%clk 0:00:37]} 88. Rf6 {[%clk 0:00:09]}  Nc8 {[%clk 0:00:35]} 89. Rh6 {[%clk 0:00:09]}  Ne7 {[%clk 0:00:34]} 90. Rf6 {[%clk 0:00:09]}  Ng8 {[%clk 0:00:33]} 91. Rg6 {[%clk 0:00:09]}  Ne7 {[%clk 0:00:33]} 92. Rb6 {[%clk 0:00:09]}  Nf5 {[%clk 0:00:31]} 93. Kd5 {[%clk 0:00:09]}  Ne7+ {[%clk 0:00:31]} 94. Ke5 {[%clk 0:00:09]}  Nc6+ {[%clk 0:00:30]} 95. Kd5 {[%clk 0:00:09]}  Ne7+ {[%clk 0:00:31]} 96. Kc5 {[%clk 0:00:09]}  Nf5 {[%clk 0:00:30]} 97. Ra6 {[%clk 0:00:09]}  Ne7 {[%clk 0:00:28]} 98. Kd4 {[%clk 0:00:09]}  Nc6+ {[%clk 0:00:28]} 99. Kd5 {[%clk 0:00:09]}  Ne7+ {[%clk 0:00:28]} 100. Ke5 {[%clk 0:00:09]}  Nc6+ {[%clk 0:00:28]} 101. Ke4 {[%clk 0:00:09]}  Kd6 {[%clk 0:00:27]} 102. Rb6 {[%clk 0:00:10]}  Kc5 {[%clk 0:00:27]} 103. Rb2 {[%clk 0:00:10]}  Kd6 {[%clk 0:00:27]} 104. Rc2 {[%clk 0:00:10]}  Ne7 {[%clk 0:00:26]} 105. Rh2 {[%clk 0:00:10]}  Ke6 {[%clk 0:00:26]} 106. Rh6+ {[%clk 0:00:10]}  Kf7 {[%clk 0:00:26]} 107. Ke5 {[%clk 0:00:11]}  Ng6+ {[%clk 0:00:26]} 108. Kf5 {[%clk 0:00:11]}  Ne7+ {[%clk 0:00:26]} 109. Kg5 {[%clk 0:00:12]}  Nd5 {[%clk 0:00:25]} 110. Rd6 {[%clk 0:00:12]}  Ne7 {[%clk 0:00:24]} 111. Rb6 {[%clk 0:00:11]}  Nd5 {[%clk 0:00:24]} 112. Rc6 {[%clk 0:00:11]}  Ne7 {[%clk 0:00:23]} 113. Rd6 {[%clk 0:00:12]}  Ng8 {[%clk 0:00:19]} 114. Rd7+ {[%clk 0:00:09]}  Ke6 {[%clk 0:00:19]} 115. Rg7 {[%clk 0:00:09]}  Ne7 {[%clk 0:00:20]} 116. Kf4 {[%clk 0:00:09]}  Nd5+ {[%clk 0:00:19]} 117. Ke4 {[%clk 0:00:10]}  Nf6+ {[%clk 0:00:19]} 118. Kd4 {[%clk 0:00:11]}  Nh5 {[%clk 0:00:16]} 119. Rg5 {[%clk 0:00:10]}  Nf6 {[%clk 0:00:15]} 120. Re5+ {[%clk 0:00:11]}  Kf7 {[%clk 0:00:14]} 121. Rf5 {[%clk 0:00:11]}  Ke6 {[%clk 0:00:14]} 122. Rf3 {[%clk 0:00:11]}  Nd7 {[%clk 0:00:13]} 123. Rh3 {[%clk 0:00:11]}  Kf5 {[%clk 0:00:10]} 124. Rh7 {[%clk 0:00:11]}  Nf6 {[%clk 0:00:11]} 125. Rf7 {[%clk 0:00:11]}  Ke6 {[%clk 0:00:11]} 126. Rf8 {[%clk 0:00:12]} 1/2-1/2


[Site "https://www.chess.com"]

[Event "Titled Tuesday Blitz July 4 Late 2023"]
[White "Kielinkei"]
[Black "Torres Dominguez, David"]
[BlackFideId "2220857"]
[WhiteElo "2422"]
[BlackElo "2157"]
[Result "1-0"]
[Round "4"]
[TimeControl "180+2"]
[Date "2023.07.04"]
[WhiteClock "0:02:21"]
[BlackClock "0:00:00"]
[Board "146"]

1. e4 {[%clk 0:03:00]}  Nc6 {[%clk 0:00:17]} 2. d4 {[%clk 0:02:56]}  e5 {[%clk 0:00:18]} 3. dxe5 {[%clk 0:02:56]}  Nxe5 {[%clk 0:00:18]} 4. Nf3 {[%clk 0:02:56]}  Nxf3+ {[%clk 0:00:19]} 5. Qxf3 {[%clk 0:02:56]}  Qf6 {[%clk 0:00:20]} 6. Qd1 {[%clk 0:02:55]}  d6 {[%clk 0:00:19]} 7. Nc3 {[%clk 0:02:54]}  c6 {[%clk 0:00:18]} 8. Bc4 {[%clk 0:02:54]}  Ne7 {[%clk 0:00:16]} 9. O-O {[%clk 0:02:53]}  Be6 {[%clk 0:00:14]} 10. Bb3 {[%clk 0:02:49]}  Bxb3 {[%clk 0:00:13]} 11. axb3 {[%clk 0:02:49]}  O-O-O {[%clk 0:00:14]} 12. Rxa7 {[%clk 0:02:48]}  Ng6 {[%clk 0:00:13]} 13. Be3 {[%clk 0:02:42]}  d5 {[%clk 0:00:10]} 14. Ra8+ {[%clk 0:02:28]}  Kc7 {[%clk 0:00:09]} 15. Rxd8 {[%clk 0:02:29]}  Qxd8 {[%clk 0:00:07]} 16. exd5 {[%clk 0:02:29]}  Bd6 {[%clk 0:00:07]} 17. dxc6 {[%clk 0:02:25]}  bxc6 {[%clk 0:00:00]} 18. Qd4 {[%clk 0:02:21]} 1-0


[Site "https://www.chess.com"]